{"text_format":"1","workbook":"xlsx","n_sheets":7,"sheets":["Instructions","Main Menu","Quarterly","Sheet1","Monthly","Quarterly with Monthly Wages","Lists"],"not_rendered":{"charts":0,"images":0,"macros":1,"external_links":0,"defined_names":0,"comments":0,"pivot_tables":0},"unopened":[],"bounds":{"document_bytes":16777216,"sheet_cells":100000,"rows_first":2000,"rows_last":500,"rows_between":2000,"halvings":0,"cell_chars":16384,"cell_head_chars":4096},"cells_cut":0,"cells_raw":0,"read":"whole","date_system":"1900"}

{"sheet":"Instructions","index":0,"n_rows":94,"n_cols":1,"rows_kept":94,"cut":false,"hidden":false,"merged":[[0,0,2,0]]}
["BAS Instructions"]
[]
[]
[]
["Step 1: Enter relevant information using the drop down menu set out on the \"Main Menu\""]
["The user must take a blank copy of the calculator before commencing a new assessment."]
["You will need the following information from the customer:"]
[" - Industry that business is in"]
[" - Type of BAS available (Simpler BAS, Full Reporting or GST Instalment Method)"]
[" - Frequency of BAS submissions (Quarterly, Monthly or Quarterly BAS with Monthly Wages*)"]
[" - The number of BAS available"]
[]
["*Please check the Integrated Client Account and / or Instalment Activity Statements to confirm if BAS submissions are quarterly and wages are reportedly monthly."]
[]
["Step 2: Once the relevant information is filled in, click \"Proceed\" to populate the relevant form to input your BAS details."]
["Note: If the customer is not eligible for the BAS Pathway, you will get a prompt and will be unable to proceed."]
[]
["If the populated form is \"Quarterly\", go to Step 3."]
["If the populated form is \"Monthly\", go to Step 4."]
["If the populated form is \"Quarterly with Monthly Wages\", go to Step 5."]
[]
["Step 3: Filling out the Quarterly BAS Calculator"]
["Enter the BAS values into the \"Quarterly\" form as per the matching BAS labels."]
[" - Total Sales (G1) - Confirm whether sales include GST or not by using the drop down menu \"Total Sales includes GST\" (Yes / No)"]
[" - GST on Sales (1A)"]
[" - GST on Purchases (1B)"]
[" - Total salary, wages and other payments (W1)"]
[" - Fringe Benefit Tax (FBT) (6A) - only if applicable, otherwise set it to zero"]
[]
["Additional Step (if you selected Full Reporting Method under Main Menu)"]
["Enter the following BAS values into the matching BAS labels"]
[" - Non Capital Purchases (G11)"]
[" - Capital Purchases (G10)"]
["If you believe capital purchases are one-off in nature and you like to add back the amount to BAS profit, using the drop down menu \"Include Capital Purchases in BAS Profit\" and select \"Yes\". Enter the capital purchase add back amount to \"Add Back: Capital Purchases (Excl. GST)\""]
["Please check the credit requirements when using capital purchases as it requires additional documentation from the customer."]
[]
["If you have specified less than 4 submissions in Step 1, you will only need to fill in the required number of submissions."]
[]
["Once all the fields filled in, copy over:"]
[" 1. \"Annualised\" Total Sales into \"Total Revenue\" field in the Serviceability Calculator"]
["2. \"Annualised\" BAS Profit into \"Profit before Tax\" field in the Serviceability Calculator"]
[]
[]
["Step 4: Filling out the Monthly BAS Calculator"]
["Enter the BAS values into the \"Monthly\" form as per the matching BAS labels."]
[" - Total Sales (G1) - Confirm whether sales include GST or not by using the drop down menu \"Total Sales includes GST\" (Yes / No)"]
[" - GST on Sales (1A)"]
[" - GST on Purchases (1B)"]
[" - Total salary, wages and other payments (W1)"]
[" - Fringe Benefit Tax (FBT) (6A) - only if applicable, otherwise set it to zero"]
[]
["Additional Step (if you selected Full Reporting Method under Main Menu)"]
["Enter the following BAS values into the matching BAS labels"]
[" - Non Capital Purchases (G11)"]
[" - Capital Purchases (G10)"]
["If you believe capital purchases are one-off in nature and you like to add back the amount to BAS profit, using the drop down menu \"Include Capital Purchases in BAS Profit\" and select \"Yes\". Enter the capital purchase add back amount to \"Add Back: Capital Purchases (Excl. GST)\""]
["Please check the credit requirements when using capital purchases as it requires additional documentation from the customer."]
[]
["If you have specified less than 12 submissions in Step 1, you will only need to fill in the required number of submissions."]
[]
["Once all the fields filled in, copy over:"]
[" 1. \"Annualised\" Total Sales into \"Total Revenue\" field in the Serviceability Calculator"]
["2. \"Annualised\" BAS Profit into \"Profit before Tax\" field in the Serviceability Calculator"]
[]
[]
["Step 5: Filling out the Quarterly with Monthly Wages BAS Calculator"]
["You have selected \"Quarterly with Monthly Wages\". This means that BAS is submitted on a quarterly basis but the Total salary, wages and other payments (W1) amount reported is reflecting the last month of the quarter only."]
["You will need to seek Instalment Activity Statements (IAS) to confirm Total salary, wages and other payments (W1) for the fill in the remaining two months for every quarter you're entering."]
[]
["Enter the BAS values into the \"Quarterly with Monthly Wages\" form as per the matching BAS labels."]
[" - Total Sales (G1) - Confirm whether sales include GST or not by using the drop down menu \"Total Sales includes GST\" (Yes / No)"]
[" - GST on Sales (1A)"]
[" - GST on Purchases (1B)"]
[" - Fringe Benefit Tax (FBT) (6A) - only if applicable, otherwise set it to zero"]
[]
["For Total salary, wages and other payments (W1), make sure you confirm that wages are reported monthly via Integrated Client Accounts (ICA) or via Instalment Activity Statement (IAS)."]
[" - Enter Total salary, wages and other payments (W1) from BAS into \"W1-Month 3\"  for each quarter"]
[" - Confirm the amounts of the remaining two months of wages from IAS and enter the amounts into \"W1-Month 1\" and \"W1-Month 2\" respectively."]
[]
["Additional Step (if you selected Full Reporting Method under Main Menu)"]
["Enter the following BAS values into the matching BAS labels"]
[" - Non Capital Purchases (G11)"]
[" - Capital Purchases (G10)"]
["If you believe capital purchases are one-off in nature and you like to add back the amount to BAS profit, using the drop down menu \"Include Capital Purchases in BAS Profit\" and select \"Yes\". Enter the capital purchase add back amount to \"Add Back: Capital Purchases (Excl. GST)\""]
["Please check the credit requirements when using capital purchases as it requires additional documentation from the customer."]
[]
["If you have specified less than 4 submissions in Step 1, you will only need to fill in the required number of submissions."]
[]
["Once all the fields filled in, copy over:"]
[" 1. \"Annualised\" Total Sales into \"Total Revenue\" field in the Serviceability Calculator"]
["2. \"Annualised\" BAS Profit into \"Profit before Tax\" field in the Serviceability Calculator"]
[]
["Things you should know"]
["The SIMPLE+ BAS Calculator (BAS Calculator) is the property of the Westpac Banking Corporation ABN 33 007 457 141 AFSL and Australian credit licence 233714 and you acknowledge by accessing the BAS Calculator that it is provided for use by you only as an accredited Westpac broker and is not to be shared, copied or otherwise distributed. \nYou acknowledge that the information you input into the BAS Calculator must accurately reflect the position of the borrower including but not limited to the Business Activity Statements (BAS), Integrated Client Account (ICA) and Instalment Activity Statements (IAS) accessible from the Australian Taxation Office portal. The BAS Calculator contains general information and your client before acting on this information needs to consider its appropriateness having regards to their objectives, financial situation and needs and should seek independent, financial , legal and taxation advice. The results derived from the BAS Calculator are for illustrative purposes only and should not be regarded as a prediction or personal advice.  The calculations are not intended to be forecasts or projections but to be used as a tool to assist you to submit data into the SIMPLE+ Serviceability Calculator.   The information and results obtained from the BAS Calculator do not constitute a loan approval, quote or an offer to lend and it is not intended that they be relied on for the purposes of making a final decision in relation to a lending or credit product.  The figures and formulae used in the BAS Calculator may change at any time without notice.  No guarantee, warranty, or representation is given or implied as to the reliability or accuracy of the information used to compile each index or each calculation. Westpac denies any liability for any direct, indirect, incidental , consequential or special damages or for any loss arising out of or in any way connected with the access to, reliance on, or use of the BAS Calculator. The results from the BAS Calculator are confidential and cannot be distributed to any party not authorised by the borrower’s express written consent. View our Privacy Statements at https://www.westpac.com.au/privacy/privacy-statement/. "]

{"sheet":"Main Menu","index":1,"n_rows":14,"n_cols":3,"rows_kept":14,"cut":false,"hidden":false,"merged":[[12,1,12,3],[13,1,13,3],[11,1,11,3]]}
[]
[null,"SIMPLE+ BAS Calculator"]
[]
[null,"Industry","All Other"]
[null,"BAS Submission Type","Simpler BAS"]
[null,"BAS Submission Frequency"]
[null,"Number of submission available"]
[]
[]
[]
[]
[null,"• Warning - Ensure PAYG Instalments in the ICA are not monthly"]
[null,"• To be eligible to proceed, 12 months most recent BAS are required"]
[null,"• Appropriate commentary is required justifying any material variances or seasonality"]

{"sheet":"Quarterly","index":2,"n_rows":59,"n_cols":8,"rows_kept":59,"cut":false,"hidden":true,"merged":[[40,0,50,7],[0,0,2,7]]}
["BAS CALCULATOR - QUARTERLY"]
[]
[]
[]
[null,null,1,2,3,4,"Total of Inputs","Annualised"]
[]
[null,"BAS Item"]
["Total Sales","G1"]
[]
["Total Sales includes GST"]
[]
["GST on Sales","1A"]
[]
["Sales Net of GST",null,{"$f":"IF(AND(C8<>\"\",C10<>\"\",C12<>\"\"),IF(C10=\"Yes\",C8-C12,C8),\"\")","v":""},{"$f":"IF(AND(D8<>\"\",D10<>\"\",D12<>\"\"),IF(D10=\"Yes\",D8-D12,D8),\"\")","v":""},{"$f":"IF(AND(E8<>\"\",E10<>\"\",E12<>\"\"),IF(E10=\"Yes\",E8-E12,E8),\"\")","v":""},{"$f":"IF(AND(F8<>\"\",F10<>\"\",F12<>\"\"),IF(F10=\"Yes\",F8-F12,F8),\"\")","v":""},{"$f":"SUM(OFFSET($F14,0,0,1,-'Main Menu'!$C$7))","v":{"$error":"#REF!"}},{"$f":"G14*4/'Main Menu'!$C$7","v":{"$error":"#REF!"}}]
[]
["LESS"]
["Non Capital Purchases","G11"]
[]
["Capital Purchases","G10"]
[]
["GST on Purchases","1B"]
[]
["Purchases Net of GST",null,{"$f":"IF('Main Menu'!$C$5=\"Simpler BAS\",Quarterly!C$21*10,IF(C17<C21*11,C21*10,C17-C21))","v":0},{"$f":"IF('Main Menu'!$C$5=\"Simpler BAS\",Quarterly!D$21*10,IF(D17<D21*11,D21*10,D17-D21))","v":0},{"$f":"IF('Main Menu'!$C$5=\"Simpler BAS\",Quarterly!E$21*10,IF(E17<E21*11,E21*10,E17-E21))","v":0},{"$f":"IF('Main Menu'!$C$5=\"Simpler BAS\",Quarterly!F$21*10,IF(F17<F21*11,F21*10,F17-F21))","v":0},{"$f":"SUM(OFFSET($F23,0,0,1,-'Main Menu'!$C$7))","v":{"$error":"#REF!"}},{"$f":"G23*4/'Main Menu'!$C$7","v":{"$error":"#REF!"}}]
[]
["Total Salary, wages and other payments","W1"]
[]
["Staff OnCosts",null,{"$f":"0.15*C25","v":0},{"$f":"0.15*D25","v":0},{"$f":"0.15*E25","v":0},{"$f":"0.15*F25","v":0}]
[]
["FBT","6A"]
[]
["Total Expenses Net of GST",null,{"$f":"IF(AND(C25<>\"\",C29<>\"\"),C29+C27+C25+C23,\"\")","v":""},{"$f":"IF(AND(D25<>\"\",D29<>\"\"),D29+D27+D25+D23,\"\")","v":""},{"$f":"IF(AND(E25<>\"\",E29<>\"\"),E29+E27+E25+E23,\"\")","v":""},{"$f":"IF(AND(F25<>\"\",F29<>\"\"),F29+F27+F25+F23,\"\")","v":""},{"$f":"SUM(OFFSET($F31,0,0,1,-'Main Menu'!$C$7))","v":{"$error":"#REF!"}},{"$f":"G31*4/'Main Menu'!$C$7","v":{"$error":"#REF!"}}]
[]
["Include Capital Purchases in BAS Profit"]
[]
["Add Back: Capital Purchases (excl GST)"]
[]
["BAS Profit",null,{"$f":"IFERROR(_xlfn.IFS(AND('Main Menu'!$C$5=\"Full Form BAS\",Quarterly!C8<>\"\",Quarterly!C10<>\"\",Quarterly!C12<>\"\",Quarterly!C17<>\"\",Quarterly!C19<>\"\",Quarterly!C21<>\"\",Quarterly!C25<>\"\",Quarterly!C29<>\"\",Quarterly!C33<>\"\",Quarterly!C33=\"Yes\"),Quarterly!C14-Quarterly!C31+Quarterly!C35,AND('Main Menu'!$C$5=\"Full Form BAS\",Quarterly!C8<>\"\",Quarterly!C10<>\"\",Quarterly!C12<>\"\",Quarterly!C17<>\"\",Quarterly!C19<>\"\",Quarterly!C21<>\"\",Quarterly!C25<>\"\",Quarterly!C29<>\"\",Quarterly!C33<>\"\",Quarterly!C33=\"No\"),Quarterly!C14-Quarterly!C31,AND('Main Menu'!$C$5=\"Simpler BAS\",Quarterly!C8<>\"\",Quarterly!C10<>\"\",Quarterly!C12<>\"\",Quarterly!C21<>\"\",Quarterly!C25<>\"\",Quarterly!C29<>\"\"),Quarterly!C14-Quarterly!C31),\"\")","v":""},{"$f":"IFERROR(_xlfn.IFS(AND('Main Menu'!$C$5=\"Full Form BAS\",Quarterly!D8<>\"\",Quarterly!D10<>\"\",Quarterly!D12<>\"\",Quarterly!D17<>\"\",Quarterly!D19<>\"\",Quarterly!D21<>\"\",Quarterly!D25<>\"\",Quarterly!D29<>\"\",Quarterly!D33<>\"\",Quarterly!D33=\"Yes\"),Quarterly!D14-Quarterly!D31+Quarterly!D35,AND('Main Menu'!$C$5=\"Full Form BAS\",Quarterly!D8<>\"\",Quarterly!D10<>\"\",Quarterly!D12<>\"\",Quarterly!D17<>\"\",Quarterly!D19<>\"\",Quarterly!D21<>\"\",Quarterly!D25<>\"\",Quarterly!D29<>\"\",Quarterly!D33<>\"\",Quarterly!D33=\"No\"),Quarterly!D14-Quarterly!D31,AND('Main Menu'!$C$5=\"Simpler BAS\",Quarterly!D8<>\"\",Quarterly!D10<>\"\",Quarterly!D12<>\"\",Quarterly!D21<>\"\",Quarterly!D25<>\"\",Quarterly!D29<>\"\"),Quarterly!D14-Quarterly!D31),\"\")","v":""},{"$f":"IFERROR(_xlfn.IFS(AND('Main Menu'!$C$5=\"Full Form BAS\",Quarterly!E8<>\"\",Quarterly!E10<>\"\",Quarterly!E12<>\"\",Quarterly!E17<>\"\",Quarterly!E19<>\"\",Quarterly!E21<>\"\",Quarterly!E25<>\"\",Quarterly!E29<>\"\",Quarterly!E33<>\"\",Quarterly!E33=\"Yes\"),Quarterly!E14-Quarterly!E31+Quarterly!E35,AND('Main Menu'!$C$5=\"Full Form BAS\",Quarterly!E8<>\"\",Quarterly!E10<>\"\",Quarterly!E12<>\"\",Quarterly!E17<>\"\",Quarterly!E19<>\"\",Quarterly!E21<>\"\",Quarterly!E25<>\"\",Quarterly!E29<>\"\",Quarterly!E33<>\"\",Quarterly!E33=\"No\"),Quarterly!E14-Quarterly!E31,AND('Main Menu'!$C$5=\"Simpler BAS\",Quarterly!E8<>\"\",Quarterly!E10<>\"\",Quarterly!E12<>\"\",Quarterly!E21<>\"\",Quarterly!E25<>\"\",Quarterly!E29<>\"\"),Quarterly!E14-Quarterly!E31),\"\")","v":""},{"$f":"IFERROR(_xlfn.IFS(AND('Main Menu'!$C$5=\"Full Form BAS\",Quarterly!F8<>\"\",Quarterly!F10<>\"\",Quarterly!F12<>\"\",Quarterly!F17<>\"\",Quarterly!F19<>\"\",Quarterly!F21<>\"\",Quarterly!F25<>\"\",Quarterly!F29<>\"\",Quarterly!F33<>\"\",Quarterly!F33=\"Yes\"),Quarterly!F14-Quarterly!F31+Quarterly!F35,AND('Main Menu'!$C$5=\"Full Form BAS\",Quarterly!F8<>\"\",Quarterly!F10<>\"\",Quarterly!F12<>\"\",Quarterly!F17<>\"\",Quarterly!F19<>\"\",Quarterly!F21<>\"\",Quarterly!F25<>\"\",Quarterly!F29<>\"\",Quarterly!F33<>\"\",Quarterly!F33=\"No\"),Quarterly!F14-Quarterly!F31,AND('Main Menu'!$C$5=\"Simpler BAS\",Quarterly!F8<>\"\",Quarterly!F10<>\"\",Quarterly!F12<>\"\",Quarterly!F21<>\"\",Quarterly!F25<>\"\",Quarterly!F29<>\"\"),Quarterly!F14-Quarterly!F31),\"\")","v":""},{"$f":"SUM(OFFSET($F37,0,0,1,-'Main Menu'!$C$7))","v":{"$error":"#REF!"}},{"$f":"G37*4/'Main Menu'!$C$7","v":{"$error":"#REF!"}}]
[null,null,null,null,null,null,null,{"$f":"IF(H37<0,\"Please investigate\",\"\")","v":{"$error":"#REF!"}}]
[]
["Additional Information"]
[]
[]
[]
[]
[]
[]
[]
[]
[]
[]
[]
[]
["Notes"]
["1. If Non-Capital Purchases (Item G11) is not declared in BAS statement then leave it blank and only enter GST on Purchases(Item 1B). "]
["2. Include FBT if applicable"]
["3. Enter Total BAS Profit as Net Profit before Tax figure."]
[]
["Other Considerations"]
["1. Review Sales, Purchases Net of GST and Total Salary, Wages and other Payments from quarter to quarter to see whether there is any significant variation and determine whether it requires further investigation."]

{"sheet":"Sheet1","index":3,"n_rows":0,"n_cols":0,"rows_kept":0,"cut":false,"hidden":true,"merged":[]}

{"sheet":"Monthly","index":4,"n_rows":59,"n_cols":16,"rows_kept":59,"cut":false,"hidden":true,"merged":[[0,0,2,15],[40,0,50,15]]}
["BAS CALCULATOR - QUARTERLY"]
[]
[]
[]
[null,null,1,{"$f":"C5+1","v":2},{"$f":"D5+1","v":3},4,5,6,7,8,9,10,11,12,"Total of Inputs","Annualised"]
[]
[null,"BAS Item"]
["Total Sales","G1"]
[]
["Total Sales includes GST"]
[]
["GST on Sales","1A"]
[]
["Sales Net of GST",null,{"$f":"IF(AND(C8<>\"\",C10<>\"\",C12<>\"\"),IF(C10=\"Yes\",C8-C12,C8),\"\")","v":""},{"$f":"IF(AND(D8<>\"\",D10<>\"\",D12<>\"\"),IF(D10=\"Yes\",D8-D12,D8),\"\")","v":""},{"$f":"IF(AND(E8<>\"\",E10<>\"\",E12<>\"\"),IF(E10=\"Yes\",E8-E12,E8),\"\")","v":""},{"$f":"IF(AND(F8<>\"\",F10<>\"\",F12<>\"\"),IF(F10=\"Yes\",F8-F12,F8),\"\")","v":""},{"$f":"IF(AND(G8<>\"\",G10<>\"\",G12<>\"\"),IF(G10=\"Yes\",G8-G12,G8),\"\")","v":""},"","","","","","","",{"$f":"SUM(OFFSET($N14,0,0,1,-'Main Menu'!$C$7))","v":{"$error":"#REF!"}},{"$f":"O14*12/'Main Menu'!$C$7","v":{"$error":"#REF!"}}]
[]
["LESS"]
["Non Capital Purchases","G11"]
[]
["Capital Purchases","G10"]
[]
["GST on Purchases","1B"]
[]
["Purchases Net of GST",null,{"$f":"IF('Main Menu'!$C$5=\"Simpler BAS\",Monthly!C$21*10,IF(C17<C21*11,C21*10,C17-C21))","v":0},{"$f":"IF('Main Menu'!$C$5=\"Simpler BAS\",Monthly!D$21*10,IF(D17<D21*11,D21*10,D17-D21))","v":0},{"$f":"IF('Main Menu'!$C$5=\"Simpler BAS\",Monthly!E$21*10,IF(E17<E21*11,E21*10,E17-E21))","v":0},{"$f":"IF('Main Menu'!$C$5=\"Simpler BAS\",Monthly!F$21*10,IF(F17<F21*11,F21*10,F17-F21))","v":0},{"$f":"IF('Main Menu'!$C$5=\"Simpler BAS\",Monthly!G$21*10,IF(G17<G21*11,G21*10,G17-G21))","v":0},{"$f":"IF('Main Menu'!$C$5=\"Simpler BAS\",Monthly!H$21*10,IF(H17<H21*11,H21*10,H17-H21))","v":0},{"$f":"IF('Main Menu'!$C$5=\"Simpler BAS\",Monthly!I$21*10,IF(I17<I21*11,I21*10,I17-I21))","v":0},{"$f":"IF('Main Menu'!$C$5=\"Simpler BAS\",Monthly!J$21*10,IF(J17<J21*11,J21*10,J17-J21))","v":0},{"$f":"IF('Main Menu'!$C$5=\"Simpler BAS\",Monthly!K$21*10,IF(K17<K21*11,K21*10,K17-K21))","v":0},{"$f":"IF('Main Menu'!$C$5=\"Simpler BAS\",Monthly!L$21*10,IF(L17<L21*11,L21*10,L17-L21))","v":0},{"$f":"IF('Main Menu'!$C$5=\"Simpler BAS\",Monthly!M$21*10,IF(M17<M21*11,M21*10,M17-M21))","v":0},{"$f":"IF('Main Menu'!$C$5=\"Simpler BAS\",Monthly!N$21*10,IF(N17<N21*11,N21*10,N17-N21))","v":0},{"$f":"SUM(OFFSET($N23,0,0,1,-'Main Menu'!$C$7))","v":{"$error":"#REF!"}},{"$f":"O23*12/'Main Menu'!$C$7","v":{"$error":"#REF!"}}]
[]
["Total Salary, wages and other payments","W1"]
[]
["Staff OnCosts",null,{"$f":"0.15*C25","v":0},{"$f":"0.15*D25","v":0},{"$f":"0.15*E25","v":0},{"$f":"0.15*F25","v":0},{"$f":"0.15*G25","v":0},0,0,0,0,0,0,0]
[]
["FBT","6A"]
[]
["Total Expenses Net of GST",null,{"$f":"IF(AND(C25<>\"\",C29<>\"\"),C29+C27+C25+C23,\"\")","v":""},{"$f":"IF(AND(D25<>\"\",D29<>\"\"),D29+D27+D25+D23,\"\")","v":""},{"$f":"IF(AND(E25<>\"\",E29<>\"\"),E29+E27+E25+E23,\"\")","v":""},{"$f":"IF(AND(F25<>\"\",F29<>\"\"),F29+F27+F25+F23,\"\")","v":""},{"$f":"IF(AND(G25<>\"\",G29<>\"\"),G29+G27+G25+G23,\"\")","v":""},"","","","","","","",{"$f":"SUM(OFFSET($N31,0,0,1,-'Main Menu'!$C$7))","v":{"$error":"#REF!"}},{"$f":"O31*12/'Main Menu'!$C$7","v":{"$error":"#REF!"}}]
[]
["Include Capital Purchases in BAS Profit"]
[]
["Add Back: Capital Purchases (excl GST)"]
[]
["BAS Profit",null,{"$f":"IFERROR(_xlfn.IFS(AND('Main Menu'!$C$5=\"Full Form BAS\",Monthly!C8<>\"\",Monthly!C10<>\"\",Monthly!C12<>\"\",Monthly!C17<>\"\",Monthly!C19<>\"\",Monthly!C21<>\"\",Monthly!C25<>\"\",Monthly!C29<>\"\",Monthly!C33<>\"\",Monthly!C33=\"Yes\"),Monthly!C14-Monthly!C31+Monthly!C35,AND('Main Menu'!$C$5=\"Full Form BAS\",Monthly!C8<>\"\",Monthly!C10<>\"\",Monthly!C12<>\"\",Monthly!C17<>\"\",Monthly!C19<>\"\",Monthly!C21<>\"\",Monthly!C25<>\"\",Monthly!C29<>\"\",Monthly!C33<>\"\",Monthly!C33=\"No\"),Monthly!C14-Monthly!C31,AND('Main Menu'!$C$5=\"Simpler BAS\",Monthly!C8<>\"\",Monthly!C10<>\"\",Monthly!C12<>\"\",Monthly!C21<>\"\",Monthly!C25<>\"\",Monthly!C29<>\"\"),Monthly!C14-Monthly!C31),\"\")","v":""},{"$f":"IFERROR(_xlfn.IFS(AND('Main Menu'!$C$5=\"Full Form BAS\",Monthly!D8<>\"\",Monthly!D10<>\"\",Monthly!D12<>\"\",Monthly!D17<>\"\",Monthly!D19<>\"\",Monthly!D21<>\"\",Monthly!D25<>\"\",Monthly!D29<>\"\",Monthly!D33<>\"\",Monthly!D33=\"Yes\"),Monthly!D14-Monthly!D31+Monthly!D35,AND('Main Menu'!$C$5=\"Full Form BAS\",Monthly!D8<>\"\",Monthly!D10<>\"\",Monthly!D12<>\"\",Monthly!D17<>\"\",Monthly!D19<>\"\",Monthly!D21<>\"\",Monthly!D25<>\"\",Monthly!D29<>\"\",Monthly!D33<>\"\",Monthly!D33=\"No\"),Monthly!D14-Monthly!D31,AND('Main Menu'!$C$5=\"Simpler BAS\",Monthly!D8<>\"\",Monthly!D10<>\"\",Monthly!D12<>\"\",Monthly!D21<>\"\",Monthly!D25<>\"\",Monthly!D29<>\"\"),Monthly!D14-Monthly!D31),\"\")","v":""},{"$f":"IFERROR(_xlfn.IFS(AND('Main Menu'!$C$5=\"Full Form BAS\",Monthly!E8<>\"\",Monthly!E10<>\"\",Monthly!E12<>\"\",Monthly!E17<>\"\",Monthly!E19<>\"\",Monthly!E21<>\"\",Monthly!E25<>\"\",Monthly!E29<>\"\",Monthly!E33<>\"\",Monthly!E33=\"Yes\"),Monthly!E14-Monthly!E31+Monthly!E35,AND('Main Menu'!$C$5=\"Full Form BAS\",Monthly!E8<>\"\",Monthly!E10<>\"\",Monthly!E12<>\"\",Monthly!E17<>\"\",Monthly!E19<>\"\",Monthly!E21<>\"\",Monthly!E25<>\"\",Monthly!E29<>\"\",Monthly!E33<>\"\",Monthly!E33=\"No\"),Monthly!E14-Monthly!E31,AND('Main Menu'!$C$5=\"Simpler BAS\",Monthly!E8<>\"\",Monthly!E10<>\"\",Monthly!E12<>\"\",Monthly!E21<>\"\",Monthly!E25<>\"\",Monthly!E29<>\"\"),Monthly!E14-Monthly!E31),\"\")","v":""},{"$f":"IFERROR(_xlfn.IFS(AND('Main Menu'!$C$5=\"Full Form BAS\",Monthly!F8<>\"\",Monthly!F10<>\"\",Monthly!F12<>\"\",Monthly!F17<>\"\",Monthly!F19<>\"\",Monthly!F21<>\"\",Monthly!F25<>\"\",Monthly!F29<>\"\",Monthly!F33<>\"\",Monthly!F33=\"Yes\"),Monthly!F14-Monthly!F31+Monthly!F35,AND('Main Menu'!$C$5=\"Full Form BAS\",Monthly!F8<>\"\",Monthly!F10<>\"\",Monthly!F12<>\"\",Monthly!F17<>\"\",Monthly!F19<>\"\",Monthly!F21<>\"\",Monthly!F25<>\"\",Monthly!F29<>\"\",Monthly!F33<>\"\",Monthly!F33=\"No\"),Monthly!F14-Monthly!F31,AND('Main Menu'!$C$5=\"Simpler BAS\",Monthly!F8<>\"\",Monthly!F10<>\"\",Monthly!F12<>\"\",Monthly!F21<>\"\",Monthly!F25<>\"\",Monthly!F29<>\"\"),Monthly!F14-Monthly!F31),\"\")","v":""},{"$f":"IFERROR(_xlfn.IFS(AND('Main Menu'!$C$5=\"Full Form BAS\",Monthly!G8<>\"\",Monthly!G10<>\"\",Monthly!G12<>\"\",Monthly!G17<>\"\",Monthly!G19<>\"\",Monthly!G21<>\"\",Monthly!G25<>\"\",Monthly!G29<>\"\",Monthly!G33<>\"\",Monthly!G33=\"Yes\"),Monthly!G14-Monthly!G31+Monthly!G35,AND('Main Menu'!$C$5=\"Full Form BAS\",Monthly!G8<>\"\",Monthly!G10<>\"\",Monthly!G12<>\"\",Monthly!G17<>\"\",Monthly!G19<>\"\",Monthly!G21<>\"\",Monthly!G25<>\"\",Monthly!G29<>\"\",Monthly!G33<>\"\",Monthly!G33=\"No\"),Monthly!G14-Monthly!G31,AND('Main Menu'!$C$5=\"Simpler BAS\",Monthly!G8<>\"\",Monthly!G10<>\"\",Monthly!G12<>\"\",Monthly!G21<>\"\",Monthly!G25<>\"\",Monthly!G29<>\"\"),Monthly!G14-Monthly!G31),\"\")","v":""},{"$f":"IFERROR(_xlfn.IFS(AND('Main Menu'!$C$5=\"Full Form BAS\",Monthly!H8<>\"\",Monthly!H10<>\"\",Monthly!H12<>\"\",Monthly!H17<>\"\",Monthly!H19<>\"\",Monthly!H21<>\"\",Monthly!H25<>\"\",Monthly!H29<>\"\",Monthly!H33<>\"\",Monthly!H33=\"Yes\"),Monthly!H14-Monthly!H31+Monthly!H35,AND('Main Menu'!$C$5=\"Full Form BAS\",Monthly!H8<>\"\",Monthly!H10<>\"\",Monthly!H12<>\"\",Monthly!H17<>\"\",Monthly!H19<>\"\",Monthly!H21<>\"\",Monthly!H25<>\"\",Monthly!H29<>\"\",Monthly!H33<>\"\",Monthly!H33=\"No\"),Monthly!H14-Monthly!H31,AND('Main Menu'!$C$5=\"Simpler BAS\",Monthly!H8<>\"\",Monthly!H10<>\"\",Monthly!H12<>\"\",Monthly!H21<>\"\",Monthly!H25<>\"\",Monthly!H29<>\"\"),Monthly!H14-Monthly!H31),\"\")","v":""},{"$f":"IFERROR(_xlfn.IFS(AND('Main Menu'!$C$5=\"Full Form BAS\",Monthly!I8<>\"\",Monthly!I10<>\"\",Monthly!I12<>\"\",Monthly!I17<>\"\",Monthly!I19<>\"\",Monthly!I21<>\"\",Monthly!I25<>\"\",Monthly!I29<>\"\",Monthly!I33<>\"\",Monthly!I33=\"Yes\"),Monthly!I14-Monthly!I31+Monthly!I35,AND('Main Menu'!$C$5=\"Full Form BAS\",Monthly!I8<>\"\",Monthly!I10<>\"\",Monthly!I12<>\"\",Monthly!I17<>\"\",Monthly!I19<>\"\",Monthly!I21<>\"\",Monthly!I25<>\"\",Monthly!I29<>\"\",Monthly!I33<>\"\",Monthly!I33=\"No\"),Monthly!I14-Monthly!I31,AND('Main Menu'!$C$5=\"Simpler BAS\",Monthly!I8<>\"\",Monthly!I10<>\"\",Monthly!I12<>\"\",Monthly!I21<>\"\",Monthly!I25<>\"\",Monthly!I29<>\"\"),Monthly!I14-Monthly!I31),\"\")","v":""},{"$f":"IFERROR(_xlfn.IFS(AND('Main Menu'!$C$5=\"Full Form BAS\",Monthly!J8<>\"\",Monthly!J10<>\"\",Monthly!J12<>\"\",Monthly!J17<>\"\",Monthly!J19<>\"\",Monthly!J21<>\"\",Monthly!J25<>\"\",Monthly!J29<>\"\",Monthly!J33<>\"\",Monthly!J33=\"Yes\"),Monthly!J14-Monthly!J31+Monthly!J35,AND('Main Menu'!$C$5=\"Full Form BAS\",Monthly!J8<>\"\",Monthly!J10<>\"\",Monthly!J12<>\"\",Monthly!J17<>\"\",Monthly!J19<>\"\",Monthly!J21<>\"\",Monthly!J25<>\"\",Monthly!J29<>\"\",Monthly!J33<>\"\",Monthly!J33=\"No\"),Monthly!J14-Monthly!J31,AND('Main Menu'!$C$5=\"Simpler BAS\",Monthly!J8<>\"\",Monthly!J10<>\"\",Monthly!J12<>\"\",Monthly!J21<>\"\",Monthly!J25<>\"\",Monthly!J29<>\"\"),Monthly!J14-Monthly!J31),\"\")","v":""},{"$f":"IFERROR(_xlfn.IFS(AND('Main Menu'!$C$5=\"Full Form BAS\",Monthly!K8<>\"\",Monthly!K10<>\"\",Monthly!K12<>\"\",Monthly!K17<>\"\",Monthly!K19<>\"\",Monthly!K21<>\"\",Monthly!K25<>\"\",Monthly!K29<>\"\",Monthly!K33<>\"\",Monthly!K33=\"Yes\"),Monthly!K14-Monthly!K31+Monthly!K35,AND('Main Menu'!$C$5=\"Full Form BAS\",Monthly!K8<>\"\",Monthly!K10<>\"\",Monthly!K12<>\"\",Monthly!K17<>\"\",Monthly!K19<>\"\",Monthly!K21<>\"\",Monthly!K25<>\"\",Monthly!K29<>\"\",Monthly!K33<>\"\",Monthly!K33=\"No\"),Monthly!K14-Monthly!K31,AND('Main Menu'!$C$5=\"Simpler BAS\",Monthly!K8<>\"\",Monthly!K10<>\"\",Monthly!K12<>\"\",Monthly!K21<>\"\",Monthly!K25<>\"\",Monthly!K29<>\"\"),Monthly!K14-Monthly!K31),\"\")","v":""},{"$f":"IFERROR(_xlfn.IFS(AND('Main Menu'!$C$5=\"Full Form BAS\",Monthly!L8<>\"\",Monthly!L10<>\"\",Monthly!L12<>\"\",Monthly!L17<>\"\",Monthly!L19<>\"\",Monthly!L21<>\"\",Monthly!L25<>\"\",Monthly!L29<>\"\",Monthly!L33<>\"\",Monthly!L33=\"Yes\"),Monthly!L14-Monthly!L31+Monthly!L35,AND('Main Menu'!$C$5=\"Full Form BAS\",Monthly!L8<>\"\",Monthly!L10<>\"\",Monthly!L12<>\"\",Monthly!L17<>\"\",Monthly!L19<>\"\",Monthly!L21<>\"\",Monthly!L25<>\"\",Monthly!L29<>\"\",Monthly!L33<>\"\",Monthly!L33=\"No\"),Monthly!L14-Monthly!L31,AND('Main Menu'!$C$5=\"Simpler BAS\",Monthly!L8<>\"\",Monthly!L10<>\"\",Monthly!L12<>\"\",Monthly!L21<>\"\",Monthly!L25<>\"\",Monthly!L29<>\"\"),Monthly!L14-Monthly!L31),\"\")","v":""},{"$f":"IFERROR(_xlfn.IFS(AND('Main Menu'!$C$5=\"Full Form BAS\",Monthly!M8<>\"\",Monthly!M10<>\"\",Monthly!M12<>\"\",Monthly!M17<>\"\",Monthly!M19<>\"\",Monthly!M21<>\"\",Monthly!M25<>\"\",Monthly!M29<>\"\",Monthly!M33<>\"\",Monthly!M33=\"Yes\"),Monthly!M14-Monthly!M31+Monthly!M35,AND('Main Menu'!$C$5=\"Full Form BAS\",Monthly!M8<>\"\",Monthly!M10<>\"\",Monthly!M12<>\"\",Monthly!M17<>\"\",Monthly!M19<>\"\",Monthly!M21<>\"\",Monthly!M25<>\"\",Monthly!M29<>\"\",Monthly!M33<>\"\",Monthly!M33=\"No\"),Monthly!M14-Monthly!M31,AND('Main Menu'!$C$5=\"Simpler BAS\",Monthly!M8<>\"\",Monthly!M10<>\"\",Monthly!M12<>\"\",Monthly!M21<>\"\",Monthly!M25<>\"\",Monthly!M29<>\"\"),Monthly!M14-Monthly!M31),\"\")","v":""},{"$f":"IFERROR(_xlfn.IFS(AND('Main Menu'!$C$5=\"Full Form BAS\",Monthly!N8<>\"\",Monthly!N10<>\"\",Monthly!N12<>\"\",Monthly!N17<>\"\",Monthly!N19<>\"\",Monthly!N21<>\"\",Monthly!N25<>\"\",Monthly!N29<>\"\",Monthly!N33<>\"\",Monthly!N33=\"Yes\"),Monthly!N14-Monthly!N31+Monthly!N35,AND('Main Menu'!$C$5=\"Full Form BAS\",Monthly!N8<>\"\",Monthly!N10<>\"\",Monthly!N12<>\"\",Monthly!N17<>\"\",Monthly!N19<>\"\",Monthly!N21<>\"\",Monthly!N25<>\"\",Monthly!N29<>\"\",Monthly!N33<>\"\",Monthly!N33=\"No\"),Monthly!N14-Monthly!N31,AND('Main Menu'!$C$5=\"Simpler BAS\",Monthly!N8<>\"\",Monthly!N10<>\"\",Monthly!N12<>\"\",Monthly!N21<>\"\",Monthly!N25<>\"\",Monthly!N29<>\"\"),Monthly!N14-Monthly!N31),\"\")","v":""},{"$f":"SUM(OFFSET($N37,0,0,1,-'Main Menu'!$C$7))","v":{"$error":"#REF!"}},{"$f":"O37*12/'Main Menu'!$C$7","v":{"$error":"#REF!"}}]
[null,null,null,null,null,null,null,null,null,null,null,null,null,null,null,{"$f":"IF(P37<0,\"Please investigate\",\"\")","v":{"$error":"#REF!"}}]
[]
["Additional Information"]
[]
[]
[]
[]
[]
[]
[]
[]
[]
[]
[]
[]
["Notes"]
["1. If Non-Capital Purchases (Item G11) is not declared in BAS statement then leave it blank and only enter GST on Purchases(Item 1B). "]
["2. Include FBT if applicable"]
["3. Enter Total BAS Profit as Net Profit before Tax figure."]
[]
["Other Considerations"]
["1. Review Sales, Purchases Net of GST and Total Salary, Wages and other Payments from month to month to see whether there is any significant variation and determine whether it requires further investigation."]

{"sheet":"Quarterly with Monthly Wages","index":5,"n_rows":68,"n_cols":8,"rows_kept":68,"cut":false,"hidden":true,"merged":[[0,0,2,7],[44,0,60,7]]}
["BAS CALCULATOR- QUARTERLY WITH MONTHLY WAGES"]
[]
[]
[]
[null,null,1,2,3,4,"Total","Annualised"]
[]
[null,"BAS Item"]
["Total Sales","G1"]
[]
["Total Sales includes GST"]
[]
["GST on Sales","1A"]
[]
["Sales Net of GST",null,{"$f":"IF(AND(C8<>\"\",C10<>\"\",C12<>\"\"),IF(C10=\"Yes\",C8-C12,C8),\"\")","v":""},{"$f":"IF(AND(D8<>\"\",D10<>\"\",D12<>\"\"),IF(D10=\"Yes\",D8-D12,D8),\"\")","v":""},"","",{"$f":"SUM(OFFSET($F14,0,0,1,-'Main Menu'!$C$7))","v":{"$error":"#REF!"}},{"$f":"$G14*4/'Main Menu'!$C$7","v":{"$error":"#REF!"}}]
[]
["LESS"]
["Non Capital Purchases","G11"]
[]
["Capital Purchases","G10"]
[]
["GST on Purchases","1B"]
[]
["Purchases Net of GST",null,{"$f":"IF('Main Menu'!$C$5=\"Simpler BAS\",'Quarterly with Monthly Wages'!C$21*10,IF(C17<C21*11,C21*10,C17-C21))","v":0},{"$f":"IF('Main Menu'!$C$5=\"Simpler BAS\",'Quarterly with Monthly Wages'!D$21*10,IF(D17<D21*11,D21*10,D17-D21))","v":0},{"$f":"IF('Main Menu'!$C$5=\"Simpler BAS\",'Quarterly with Monthly Wages'!E$21*10,IF(E17<E21*11,E21*10,E17-E21))","v":0},{"$f":"IF('Main Menu'!$C$5=\"Simpler BAS\",'Quarterly with Monthly Wages'!F$21*10,IF(F17<F21*11,F21*10,F17-F21))","v":0},{"$f":"SUM(OFFSET($F23,0,0,1,-'Main Menu'!$C$7))","v":{"$error":"#REF!"}},{"$f":"$G23*4/'Main Menu'!$C$7","v":{"$error":"#REF!"}}]
[]
["Total Salary, wages and other payments","W1-Month 1"]
[]
[null,"W1-Month 2"]
[]
[null,"W1-Month 3"]
[]
["Staff OnCosts",null,{"$f":"0.15*(C25+C27+C29)","v":0},{"$f":"0.15*(D25+D27+D29)","v":0},0,0]
[]
["FBT","6A"]
[]
["Total Expenses Net of GST",null,{"$f":"IF(AND(C25<>\"\",C27<>\"\",C29<>\"\",C33<>\"\"),C33+C31+C29+C27+C25+C23,\"\")","v":""},{"$f":"IF(AND(D25<>\"\",D27<>\"\",D29<>\"\",D33<>\"\"),D33+D31+D29+D27+D25+D23,\"\")","v":""},"","",{"$f":"SUM(OFFSET($F35,0,0,1,-'Main Menu'!$C$7))","v":{"$error":"#REF!"}},{"$f":"$G35*4/'Main Menu'!$C$7","v":{"$error":"#REF!"}}]
[]
["Include Capital Purchases in BAS Profit"]
[]
["Add Back: Capital Purchases (excl GST)"]
[]
["BAS Profit",null,{"$f":"IFERROR(_xlfn.IFS(AND('Main Menu'!$C$5=\"Full Form BAS\",'Quarterly with Monthly Wages'!C8<>\"\",'Quarterly with Monthly Wages'!C10<>\"\",'Quarterly with Monthly Wages'!C12<>\"\",'Quarterly with Monthly Wages'!C17<>\"\",'Quarterly with Monthly Wages'!C19<>\"\",'Quarterly with Monthly Wages'!C21<>\"\",'Quarterly with Monthly Wages'!C25<>\"\",'Quarterly with Monthly Wages'!C27<>\"\",'Quarterly with Monthly Wages'!C29<>\"\",'Quarterly with Monthly Wages'!C33<>\"\",'Quarterly with Monthly Wages'!C37<>\"\",'Quarterly with Monthly Wages'!C37=\"Yes\"),'Quarterly with Monthly Wages'!C14-'Quarterly with Monthly Wages'!C35+'Quarterly with Monthly Wages'!C39,AND('Main Menu'!$C$5=\"Full Form BAS\",'Quarterly with Monthly Wages'!C8<>\"\",'Quarterly with Monthly Wages'!C10<>\"\",'Quarterly with Monthly Wages'!C12<>\"\",'Quarterly with Monthly Wages'!C17<>\"\",'Quarterly with Monthly Wages'!C19<>\"\",'Quarterly with Monthly Wages'!C21<>\"\",'Quarterly with Monthly Wages'!C25<>\"\",'Quarterly with Monthly Wages'!C27<>\"\",'Quarterly with Monthly Wages'!C29<>\"\",'Quarterly with Monthly Wages'!C33<>\"\",'Quarterly with Monthly Wages'!C37<>\"\",'Quarterly with Monthly Wages'!C37=\"No\"),'Quarterly with Monthly Wages'!C14-'Quarterly with Monthly Wages'!C35,AND('Main Menu'!$C$5<>\"Full Form BAS\",'Quarterly with Monthly Wages'!C8<>\"\",'Quarterly with Monthly Wages'!C10<>\"\",'Quarterly with Monthly Wages'!C12<>\"\",'Quarterly with Monthly Wages'!C21<>\"\",'Quarterly with Monthly Wages'!C25<>\"\",'Quarterly with Monthly Wages'!C27<>\"\",'Quarterly with Monthly Wages'!C29<>\"\",'Quarterly with Monthly Wages'!C33<>\"\"),'Quarterly with Monthly Wages'!C14-'Quarterly with Monthly Wages'!C35),\"\")","v":""},{"$f":"IFERROR(_xlfn.IFS(AND('Main Menu'!$C$5=\"Full Form BAS\",'Quarterly with Monthly Wages'!D8<>\"\",'Quarterly with Monthly Wages'!D10<>\"\",'Quarterly with Monthly Wages'!D12<>\"\",'Quarterly with Monthly Wages'!D17<>\"\",'Quarterly with Monthly Wages'!D19<>\"\",'Quarterly with Monthly Wages'!D21<>\"\",'Quarterly with Monthly Wages'!D25<>\"\",'Quarterly with Monthly Wages'!D27<>\"\",'Quarterly with Monthly Wages'!D29<>\"\",'Quarterly with Monthly Wages'!D33<>\"\",'Quarterly with Monthly Wages'!D37<>\"\",'Quarterly with Monthly Wages'!D37=\"Yes\"),'Quarterly with Monthly Wages'!D14-'Quarterly with Monthly Wages'!D35+'Quarterly with Monthly Wages'!D39,AND('Main Menu'!$C$5=\"Full Form BAS\",'Quarterly with Monthly Wages'!D8<>\"\",'Quarterly with Monthly Wages'!D10<>\"\",'Quarterly with Monthly Wages'!D12<>\"\",'Quarterly with Monthly Wages'!D17<>\"\",'Quarterly with Monthly Wages'!D19<>\"\",'Quarterly with Monthly Wages'!D21<>\"\",'Quarterly with Monthly Wages'!D25<>\"\",'Quarterly with Monthly Wages'!D27<>\"\",'Quarterly with Monthly Wages'!D29<>\"\",'Quarterly with Monthly Wages'!D33<>\"\",'Quarterly with Monthly Wages'!D37<>\"\",'Quarterly with Monthly Wages'!D37=\"No\"),'Quarterly with Monthly Wages'!D14-'Quarterly with Monthly Wages'!D35,AND('Main Menu'!$C$5<>\"Full Form BAS\",'Quarterly with Monthly Wages'!D8<>\"\",'Quarterly with Monthly Wages'!D10<>\"\",'Quarterly with Monthly Wages'!D12<>\"\",'Quarterly with Monthly Wages'!D21<>\"\",'Quarterly with Monthly Wages'!D25<>\"\",'Quarterly with Monthly Wages'!D27<>\"\",'Quarterly with Monthly Wages'!D29<>\"\",'Quarterly with Monthly Wages'!D33<>\"\"),'Quarterly with Monthly Wages'!D14-'Quarterly with Monthly Wages'!D35),\"\")","v":""},{"$f":"IFERROR(_xlfn.IFS(AND('Main Menu'!$C$5=\"Full Form BAS\",'Quarterly with Monthly Wages'!E8<>\"\",'Quarterly with Monthly Wages'!E10<>\"\",'Quarterly with Monthly Wages'!E12<>\"\",'Quarterly with Monthly Wages'!E17<>\"\",'Quarterly with Monthly Wages'!E19<>\"\",'Quarterly with Monthly Wages'!E21<>\"\",'Quarterly with Monthly Wages'!E25<>\"\",'Quarterly with Monthly Wages'!E27<>\"\",'Quarterly with Monthly Wages'!E29<>\"\",'Quarterly with Monthly Wages'!E33<>\"\",'Quarterly with Monthly Wages'!E37<>\"\",'Quarterly with Monthly Wages'!E37=\"Yes\"),'Quarterly with Monthly Wages'!E14-'Quarterly with Monthly Wages'!E35+'Quarterly with Monthly Wages'!E39,AND('Main Menu'!$C$5=\"Full Form BAS\",'Quarterly with Monthly Wages'!E8<>\"\",'Quarterly with Monthly Wages'!E10<>\"\",'Quarterly with Monthly Wages'!E12<>\"\",'Quarterly with Monthly Wages'!E17<>\"\",'Quarterly with Monthly Wages'!E19<>\"\",'Quarterly with Monthly Wages'!E21<>\"\",'Quarterly with Monthly Wages'!E25<>\"\",'Quarterly with Monthly Wages'!E27<>\"\",'Quarterly with Monthly Wages'!E29<>\"\",'Quarterly with Monthly Wages'!E33<>\"\",'Quarterly with Monthly Wages'!E37<>\"\",'Quarterly with Monthly Wages'!E37=\"No\"),'Quarterly with Monthly Wages'!E14-'Quarterly with Monthly Wages'!E35,AND('Main Menu'!$C$5<>\"Full Form BAS\",'Quarterly with Monthly Wages'!E8<>\"\",'Quarterly with Monthly Wages'!E10<>\"\",'Quarterly with Monthly Wages'!E12<>\"\",'Quarterly with Monthly Wages'!E21<>\"\",'Quarterly with Monthly Wages'!E25<>\"\",'Quarterly with Monthly Wages'!E27<>\"\",'Quarterly with Monthly Wages'!E29<>\"\",'Quarterly with Monthly Wages'!E33<>\"\"),'Quarterly with Monthly Wages'!E14-'Quarterly with Monthly Wages'!E35),\"\")","v":""},{"$f":"IFERROR(_xlfn.IFS(AND('Main Menu'!$C$5=\"Full Form BAS\",'Quarterly with Monthly Wages'!F8<>\"\",'Quarterly with Monthly Wages'!F10<>\"\",'Quarterly with Monthly Wages'!F12<>\"\",'Quarterly with Monthly Wages'!F17<>\"\",'Quarterly with Monthly Wages'!F19<>\"\",'Quarterly with Monthly Wages'!F21<>\"\",'Quarterly with Monthly Wages'!F25<>\"\",'Quarterly with Monthly Wages'!F27<>\"\",'Quarterly with Monthly Wages'!F29<>\"\",'Quarterly with Monthly Wages'!F33<>\"\",'Quarterly with Monthly Wages'!F37<>\"\",'Quarterly with Monthly Wages'!F37=\"Yes\"),'Quarterly with Monthly Wages'!F14-'Quarterly with Monthly Wages'!F35+'Quarterly with Monthly Wages'!F39,AND('Main Menu'!$C$5=\"Full Form BAS\",'Quarterly with Monthly Wages'!F8<>\"\",'Quarterly with Monthly Wages'!F10<>\"\",'Quarterly with Monthly Wages'!F12<>\"\",'Quarterly with Monthly Wages'!F17<>\"\",'Quarterly with Monthly Wages'!F19<>\"\",'Quarterly with Monthly Wages'!F21<>\"\",'Quarterly with Monthly Wages'!F25<>\"\",'Quarterly with Monthly Wages'!F27<>\"\",'Quarterly with Monthly Wages'!F29<>\"\",'Quarterly with Monthly Wages'!F33<>\"\",'Quarterly with Monthly Wages'!F37<>\"\",'Quarterly with Monthly Wages'!F37=\"No\"),'Quarterly with Monthly Wages'!F14-'Quarterly with Monthly Wages'!F35,AND('Main Menu'!$C$5<>\"Full Form BAS\",'Quarterly with Monthly Wages'!F8<>\"\",'Quarterly with Monthly Wages'!F10<>\"\",'Quarterly with Monthly Wages'!F12<>\"\",'Quarterly with Monthly Wages'!F21<>\"\",'Quarterly with Monthly Wages'!F25<>\"\",'Quarterly with Monthly Wages'!F27<>\"\",'Quarterly with Monthly Wages'!F29<>\"\",'Quarterly with Monthly Wages'!F33<>\"\"),'Quarterly with Monthly Wages'!F14-'Quarterly with Monthly Wages'!F35),\"\")","v":""},{"$f":"SUM(OFFSET($F41,0,0,1,-'Main Menu'!$C$7))","v":{"$error":"#REF!"}},{"$f":"$G41*4/'Main Menu'!$C$7","v":{"$error":"#REF!"}}]
[null,null,null,null,null,null,null,{"$f":"IF(H41<0,\"Please Investigate\",\"\")","v":{"$error":"#REF!"}}]
[]
["Additional Information"]
[]
[]
[]
[]
[]
[]
[]
[]
[]
[]
[]
[]
[]
[]
[]
[]
[]
["Notes"]
["1. If Non-Capital Purchases (Item G11) is not declared in BAS statement then leave it blank and only enter GST on Purchases(Item 1B). "]
["2. Include FBT if applicable"]
["3. Enter Total BAS Profit as Net Profit before Tax figure."]
[]
["Other Considerations"]
["1. Review Sales, Purchases Net of GST and Total Salary, Wages and other Payments from quarter to quarter to see whether there is any significant variation and determine whether it requires further investigation."]

{"sheet":"Lists","index":6,"n_rows":13,"n_cols":5,"rows_kept":13,"cut":false,"hidden":true,"merged":[]}
["Industry","Frequency","Quarterly","Yearly","Type of BAS"]
["Agriculture","Quarterly",1,1,"Simpler BAS"]
["Aged care and nursing homes","Monthly",2,2,"Full Form BAS"]
["Childcare","Quarterly with Monthly Wages",3,3,"GST Instalment Method"]
["Food Wholesale & Retailer ",null,4,4]
["Hospitals & Pharmacies",null,null,5]
["Property Developers",null,null,6]
["Religious Organisations",null,null,7]
["Franchises",null,null,8]
["Not-for-profit",null,null,9]
["Travel Agents",null,null,10]
["All Other",null,null,11]
[null,null,null,12]